fUSD/lending_fUSD_20250320
["ID","MTS","AMOUNT","RATE_DAILY","PERIOD"]
[356473257,1742506262835,-1687.99,0.00045753,120]
[356473258,1742506262844,-1677.14,0.00045753,120]
[356473259,1742506262853,-333.91,0.000459,2]
[356473260,1742506262862,-1015.13,0.00045901,2]
[356473261,1742506262871,-150.19,0.00045931,2]
[356473262,1742506262880,-474.50038352,0.00045995,40]
[356473263,1742506262889,-11833.85693192,0.00046,120]
[356473264,1742506262899,-3060.88458138,0.00046,30]
[356473265,1742506262908,-3230.03688859,0.00046,120]
[356473266,1742506262917,-253.90439,0.00046,120]
[356473267,1742506262926,-232.90044,0.000461,120]
[356473268,1742506262936,-298.88684,0.000461,120]
[356473269,1742506262946,-787.0,0.00046271,2]
[356473270,1742506262958,-1272.0,0.00046271,2]
[356473271,1742506262967,-907.0,0.00046271,2]
[356473272,1742506262976,-4082.0,0.00046271,2]
[356473273,1742506262985,-1430.0,0.00046271,2]
[356473274,1742506262996,-542.0,0.00046271,2]
[356473275,1742506263005,-1115.0,0.00046271,2]
[356473276,1742506263014,-645.0,0.00046271,2]
[356473277,1742506263023,-1280.0,0.00046271,2]
[356473278,1742506263034,-2035.0,0.00046271,2]
[356473279,1742506263044,-642.0,0.00046271,2]
[356473280,1742506263053,-151.0,0.00046271,2]
[356473281,1742506263063,-537.7,0.00046301,2]
[356473282,1742506263072,-233.0,0.00046305,90]
[356473283,1742506263082,-93025.25,0.0004647,8]
[356473284,1742506263091,-68846.93,0.00046498,8]
[356473285,1742506263101,-500.0,0.00046575,120]
[356473286,1742506263110,-5000.0,0.00046575,5]
[356473287,1742506263119,-614.54073836,0.00046575,120]
[356473288,1742506263129,-506.10714859,0.00046575,120]
[356473289,1742506263138,-500.0,0.00046575,120]
[356473290,1742506263148,-460.91413424,0.00046575,120]
[356473291,1742506263158,-471.4507514,0.00046575,120]
[356473292,1742506263167,-500.42265393,0.00046575,2]
[356473293,1742506263176,-500.0,0.00046575,3]
[356473294,1742506263186,-501.55976427,0.00046575,120]
[356473295,1742506263195,-498.85706264,0.00046575,120]
[356473296,1742506263205,-508.77357771,0.00046575,120]
[356473297,1742506263214,-500.41671925,0.00046575,120]
[356473298,1742506263223,-272.08937274,0.00046575,120]
[356473299,1742506263233,-501.41221608,0.00046575,120]
[356473300,1742506263243,-500.0,0.00046575,120]
[356473301,1742506263252,-501.81821046,0.00046575,120]
[356473302,1742506263262,-522.35085716,0.00046575,120]
[356473303,1742506263271,-568.29692817,0.00046575,120]
[356473304,1742506263280,-500.0,0.00046575,120]
[356473305,1742506263290,-500.72544132,0.00046575,120]
[356473306,1742506263299,-501.03772216,0.00046575,120]
[356473307,1742506263308,-500.0,0.00046575,120]
[356473308,1742506263317,-646.80477837,0.00046575,120]
[356473309,1742506263327,-500.0,0.00046575,120]
[356473310,1742506263336,-500.0,0.00046575,120]
[356473311,1742506263345,-500.0,0.00046575,120]
[356473312,1742506263354,-500.0,0.00046575,120]
[356473313,1742506263363,-500.0,0.00046575,120]
[356473314,1742506263373,-505.93352542,0.00046575,120]
[356473315,1742506263382,-500.0,0.00046575,120]
[356473316,1742506263391,-500.0,0.00046575,120]
[356473317,1742506263400,-507.06444683,0.00046575,120]
[356473318,1742506263410,-500.0,0.00046575,120]
[356473319,1742506263419,-500.0,0.00046575,120]
[356473320,1742506263429,-506.31863559,0.00046575,120]
[356473321,1742506263439,-500.0,0.00046575,120]
[356473322,1742506263450,-500.0,0.00046575,120]
[356473323,1742506263460,-500.0,0.00046575,120]
[356473324,1742506263470,-500.0,0.00046575,120]
[356473325,1742506263479,-520.57391306,0.00046575,120]
[356473326,1742506263489,-500.0,0.00046575,120]
[356473327,1742506263498,-508.37229462,0.00046575,120]
[356473328,1742506263507,-500.0,0.00046575,120]
[356473329,1742506263517,-500.0,0.00046575,120]
[356473330,1742506263527,-504.2568788,0.00046575,120]
[356473331,1742506263536,-500.0,0.00046575,120]
[356473332,1742506263546,-501.57976613,0.00046575,120]
[356473333,1742506263556,-500.0,0.00046575,120]
[356473334,1742506263566,-500.0,0.00046575,120]
[356473335,1742506263576,-265.63112536,0.00046575,120]
[356473336,1742506263585,-378.80547428,0.00046575,120]
[356473337,1742506263597,-506.25652274,0.00046575,120]
[356473338,1742506263606,-500.0,0.00046575,120]
[356473339,1742506263616,-506.30298661,0.00046575,120]
[356473340,1742506263626,-500.0,0.00046575,120]
[356473341,1742506263636,-500.0,0.00046575,120]
[356473342,1742506263646,-500.0,0.00046575,120]
[356473343,1742506263656,-500.0,0.00046575,120]
[356473344,1742506263665,-280.9,0.00046575,7]
[356473345,1742506263675,-330.25194074,0.00046575,120]
[356473346,1742506263684,-500.0,0.00046575,120]
[356473347,1742506263694,-500.0,0.00046575,120]
[356473348,1742506263704,-500.0,0.00046575,120]
[356473349,1742506263714,-1249.38,0.00046575,120]
[356473350,1742506263723,-500.0,0.00046575,120]
[356473351,1742506263734,-500.0,0.00046575,120]
[356473352,1742506263744,-500.0,0.00046575,120]
[356473353,1742506263753,-500.0,0.00046575,120]
[356473354,1742506263763,-500.0,0.00046575,120]
[356473355,1742506263772,-500.0,0.00046575,120]
[356473356,1742506263781,-1000.0,0.00046575,120]
[356473357,1742506263791,-508.2095599,0.00046575,120]
[356473358,1742506263800,-500.0,0.00046575,120]
[356473359,1742506263810,-500.19556625,0.00046575,120]
[356473360,1742506263820,-500.0,0.00046575,120]
[356473361,1742506263829,-500.0,0.00046575,120]
[356473362,1742506263838,-500.0,0.00046575,120]
[356473363,1742506263848,-304.07308617,0.00046575,120]
[356473364,1742506263858,-500.0,0.00046575,120]
[356473365,1742506263867,-500.0,0.00046575,120]
[356473366,1742506263877,-504.06,0.00046575,120]
[356473367,1742506263886,-500.0,0.00046575,120]
[356473368,1742506263895,-500.0,0.00046575,120]
[356473369,1742506263905,-500.0,0.00046575,120]
[356473370,1742506263914,-500.0,0.00046575,120]
[356473371,1742506263923,-507.83304254,0.00046575,120]
[356473372,1742506263932,-500.0,0.00046575,120]
[356473373,1742506263942,-500.0,0.00046575,120]
[356473374,1742506263954,-500.0,0.00046575,120]
[356473375,1742506263963,-704.1,0.00046575,120]
[356473376,1742506263973,-500.0,0.00046575,120]
[356473377,1742506263983,-500.0,0.00046575,120]
[356473378,1742506263993,-500.0,0.00046575,120]
[356473379,1742506264002,-500.0,0.00046575,120]
[356473380,1742506264011,-500.0,0.00046575,120]
[356473381,1742506264020,-500.0,0.00046575,120]
[356473382,1742506264031,-500.0,0.00046575,120]
[356473383,1742506264041,-500.0,0.00046575,120]
[356473384,1742506264050,-500.0,0.00046575,120]
[356473385,1742506264060,-500.0,0.00046575,120]
[356473386,1742506264068,-500.0,0.00046575,120]
[356473387,1742506264077,-500.0,0.00046575,120]
[356473388,1742506264086,-500.0,0.00046575,120]
[356473389,1742506264095,-500.0,0.00046575,120]
[356473390,1742506264105,-2013.45028245,0.00046575,30]
[356473391,1742506264114,-500.0,0.00046575,120]
[356473392,1742506264123,-500.0,0.00046575,120]
[356473393,1742506264133,-505.74717886,0.00046575,120]
[356473394,1742506264142,-502.96336355,0.00046575,120]
[356473395,1742506264152,-500.0,0.00046575,120]
[356473396,1742506264161,-296.03697155,0.00046575,120]
[356473397,1742506264246,-500.0,0.00046575,120]
[356473398,1742506264264,-500.0,0.00046575,120]
[356473399,1742506264274,-501.680123,0.00046575,120]
[356473400,1742506264284,-500.0,0.00046575,120]
[356473401,1742506264293,-500.0,0.00046575,120]
[356473402,1742506264303,-500.0,0.00046575,120]
[356473403,1742506264313,-500.0,0.00046575,120]
[356473404,1742506264322,-503.15955321,0.00046575,120]
[356473405,1742506264332,-500.0,0.00046575,120]
[356473406,1742506264341,-5000.0,0.00046575,120]
[356473407,1742506264352,-506.32234974,0.00046575,120]
[356473408,1742506264361,-500.0,0.00046575,120]
[356473409,1742506264370,-500.0,0.00046575,120]
[356473410,1742506264380,-500.0,0.00046575,120]
[356473411,1742506264389,-500.0,0.00046575,120]
[356473412,1742506264399,-502.92801749,0.00046575,120]
[356473413,1742506264409,-500.0,0.00046575,120]
[356473414,1742506264419,-579.48,0.00046575,120]
[356473415,1742506264428,-500.0,0.00046575,120]
[356473416,1742506264438,-503.3935991,0.00046575,120]
[356473417,1742506264447,-500.0,0.00046575,120]
[356473418,1742506264457,-500.0,0.00046575,120]
[356473419,1742506264467,-500.0,0.00046575,120]
[356473420,1742506264476,-500.0,0.00046575,120]
[356473421,1742506264485,-500.0,0.00046575,120]
[356473422,1742506264495,-500.0,0.00046575,120]
[356473423,1742506264506,-506.05511989,0.00046575,120]
[356473424,1742506264515,-500.0,0.00046575,120]
[356473425,1742506264525,-500.0,0.00046575,120]
[356473426,1742506264534,-500.0,0.00046575,120]
[356473427,1742506264544,-500.0,0.00046575,120]
[356473428,1742506264553,-500.0,0.00046575,120]
[356473429,1742506264563,-223.77732433,0.00046575,120]
[356473430,1742506264572,-500.0,0.00046575,120]
[356473431,1742506264581,-500.0,0.00046575,120]
[356473432,1742506264590,-500.0,0.00046575,120]
[356473433,1742506264600,-611.11633916,0.00046575,120]
[356473434,1742506264609,-427.80452204,0.00046575,2]
[356473435,1742506264618,-500.0,0.00046575,120]
[356473436,1742506264628,-500.0,0.00046575,120]
[356473437,1742506264637,-500.0,0.00046575,120]
[356473438,1742506264647,-291.04925592,0.00046575,120]
[356473439,1742506264656,-500.0,0.00046575,120]
[356473440,1742506264666,-500.0,0.00046575,120]
[356473441,1742506264675,-500.0,0.00046575,120]
[356473442,1742506264686,-279.78403242,0.00046575,120]
[356473443,1742506264695,-498.17267087,0.00046575,120]
[356473444,1742506264704,-500.0,0.00046575,120]
[356473445,1742506264713,-507.14247098,0.00046575,120]
[356473446,1742506264723,-500.0,0.00046575,120]
[356473447,1742506264734,-226.74138557,0.00046575,120]
[356473448,1742506264743,-500.0,0.00046575,120]
[356473449,1742506264752,-500.0,0.00046575,120]
[356473450,1742506264761,-500.0,0.00046575,120]
[356473451,1742506264771,-500.0,0.00046575,120]
[356473452,1742506264781,-257.25142185,0.00046575,120]
[356473453,1742506264790,-500.0,0.00046575,120]
[356473454,1742506264800,-500.0,0.00046575,120]
[356473455,1742506264809,-500.0,0.00046575,120]
[356473456,1742506264819,-500.0,0.00046575,120]
[356473457,1742506264828,-500.0,0.00046575,120]
[356473458,1742506264838,-500.0,0.00046575,120]
[356473459,1742506264847,-500.0,0.00046575,120]
[356473460,1742506264856,-500.0,0.00046575,120]
[356473461,1742506264866,-529.38927626,0.00046575,120]
[356473462,1742506264876,-505.99683251,0.00046575,120]
[356473463,1742506264885,-306.66421766,0.00046575,120]
[356473464,1742506264894,-500.0,0.00046575,120]
[356473465,1742506264903,-509.34503642,0.00046575,120]
[356473466,1742506264913,-500.0,0.00046575,120]
[356473467,1742506264922,-500.0,0.00046575,120]
[356473468,1742506264932,-500.0,0.00046575,120]
[356473469,1742506264941,-500.0,0.00046575,20]
[356473470,1742506264954,-500.0,0.00046575,120]
[356473471,1742506264963,-500.0,0.00046575,120]
[356473472,1742506264973,-500.0,0.00046575,120]
[356473473,1742506264984,-500.0,0.00046575,120]
[356473474,1742506264995,-503.38734974,0.00046575,120]
[356473475,1742506265004,-500.0,0.00046575,120]
[356473476,1742506265014,-500.0,0.00046575,120]
[356473477,1742506265027,-500.0,0.00046575,120]
[356473478,1742506265037,-500.0,0.00046575,120]
[356473479,1742506265046,-500.0,0.00046575,120]
[356473480,1742506265055,-500.0,0.00046575,120]
[356473481,1742506265065,-500.0,0.00046575,120]
[356473482,1742506265075,-500.0,0.00046575,120]
[356473483,1742506265084,-500.0,0.00046575,120]
[356473484,1742506265094,-500.0,0.00046575,120]
[356473485,1742506265103,-505.33493892,0.00046575,120]
[356473486,1742506265113,-504.51868143,0.00046575,120]
[356473487,1742506265123,-315.33712655,0.00046575,120]
[356473488,1742506265131,-227.62021015,0.00046575,120]
[356473489,1742506265141,-500.0,0.00046575,120]
[356473490,1742506265150,-500.0,0.00046575,120]
[356473491,1742506265160,-504.91362055,0.00046575,120]
[356473492,1742506265170,-231.07571268,0.00046575,120]
[356473493,1742506265179,-500.0,0.00046575,120]
[356473494,1742506265188,-353.52895706,0.00046575,120]
[356473495,1742506265198,-1508.56653403,0.00046575,120]
[356473496,1742506265207,-500.0,0.00046575,120]
[356473497,1742506265216,-500.0,0.00046575,120]
[356473498,1742506265226,-500.0,0.00046575,120]
[356473499,1742506265236,-500.0,0.00046575,120]
[356473500,1742506265245,-522.97040096,0.00046575,120]
[356473501,1742506265255,-500.0,0.00046575,120]
[356473502,1742506265264,-502.4182182,0.00046575,120]
[356473503,1742506265274,-500.0,0.00046575,120]
[356473504,1742506265284,-500.0,0.00046575,30]
[356473505,1742506265293,-500.0,0.00046575,120]
[356473506,1742506265302,-500.0,0.00046575,120]
[356473507,1742506265312,-500.0,0.00046575,120]
[356473508,1742506265321,-500.0,0.00046575,120]
[356473509,1742506265330,-500.0,0.00046575,120]
[356473510,1742506265340,-500.0,0.00046575,120]
[356473511,1742506265349,-500.0,0.00046575,120]
[356473512,1742506265358,-500.0,0.00046575,120]
[356473513,1742506265367,-502.89402548,0.00046575,120]
[356473514,1742506265376,-500.0,0.00046575,120]
[356473515,1742506265386,-500.0,0.00046575,120]
[356473516,1742506265395,-2093.7,0.00046575,120]
[356473517,1742506265404,-500.0,0.00046575,120]
[356473518,1742506265414,-342.6376585,0.00046575,120]
[356473519,1742506265427,-500.0,0.00046575,120]
[356473520,1742506265436,-503.16692345,0.00046575,120]
[356473521,1742506265446,-500.0,0.00046575,120]
[356473522,1742506265455,-500.0,0.00046575,120]
[356473523,1742506265465,-500.0,0.00046575,120]
[356473524,1742506265474,-500.0,0.00046575,120]
[356473525,1742506265485,-1294.52,0.00046575,120]
[356473526,1742506265495,-500.0,0.00046575,120]
[356473527,1742506265504,-500.0,0.00046575,120]
[356473528,1742506265613,-500.0,0.00046575,120]
[356473529,1742506265623,-805.3,0.00046575,120]
[356473530,1742506265632,-500.0,0.00046575,120]
[356473531,1742506265642,-503.58316881,0.00046575,120]
[356473532,1742506265651,-500.0,0.00046575,120]
[356473533,1742506265661,-1740.46,0.00046575,120]
[356473534,1742506265670,-500.0,0.00046575,120]
[356473535,1742506265679,-500.0,0.00046575,120]
[356473536,1742506265689,-505.39689335,0.00046575,120]
[356473537,1742506265698,-500.0,0.00046575,2]
[356473538,1742506265708,-528.46337204,0.00046575,120]
[356473539,1742506265717,-500.0,0.00046575,120]
[356473540,1742506265726,-522.36436323,0.00046575,120]
[356473541,1742506265736,-505.71464802,0.00046575,120]
[356473542,1742506265745,-500.0,0.00046575,120]
[356473543,1742506265756,-500.0,0.00046575,120]
[356473544,1742506265765,-503.64558677,0.00046575,120]
[356473545,1742506265775,-500.0,0.00046575,120]
[356473546,1742506265784,-500.0,0.00046575,120]
[356473547,1742506265794,-500.0,0.00046575,120]
[356473548,1742506265803,-500.0,0.00046575,60]
[356473549,1742506265812,-500.0,0.00046575,120]
[356473550,1742506265822,-500.0,0.00046575,120]
[356473551,1742506265831,-1204.72,0.00046575,120]
[356473552,1742506265840,-500.0,0.00046575,120]
[356473553,1742506265850,-500.0,0.00046575,120]
[356473554,1742506265859,-507.96605311,0.00046575,120]
[356473555,1742506265868,-411.67571517,0.00046575,120]
[356473556,1742506265878,-500.0,0.00046575,120]
[356473557,1742506265887,-1605.43,0.00046575,120]
[356473558,1742506265897,-500.0,0.00046575,120]
[356473559,1742506265907,-500.0,0.00046575,120]
[356473560,1742506265916,-500.0,0.00046575,120]
[356473561,1742506265926,-294.97502332,0.00046575,120]
[356473562,1742506265935,-515.15887809,0.00046575,120]
[356473563,1742506265946,-500.0,0.00046575,120]
[356473564,1742506265957,-2366.34,0.00046575,120]
[356473565,1742506265967,-409.0557427,0.00046575,120]
[356473566,1742506265977,-500.0,0.00046575,120]
[356473567,1742506265986,-500.0,0.00046575,120]
[356473568,1742506265998,-500.0,0.00046575,120]
[356473569,1742506266007,-500.0,0.00046575,120]
[356473570,1742506266018,-500.0,0.00046575,120]
[356473571,1742506266028,-642.02061353,0.00046575,120]
[356473572,1742506266039,-501.92774091,0.00046575,30]
[356473573,1742506266048,-507.08462729,0.00046575,120]
[356473574,1742506266058,-500.0,0.00046575,120]
[356473575,1742506266068,-500.0,0.00046575,120]
[356473576,1742506266078,-500.0,0.00046575,120]
[356473577,1742506266087,-2058.24,0.00046575,120]
[356473578,1742506266098,-500.0,0.00046575,120]
[356473579,1742506266107,-500.0,0.00046575,120]
[356473580,1742506266117,-500.0,0.00046575,120]
[356473581,1742506266126,-500.0,0.00046575,120]
[356473582,1742506266135,-500.0,0.00046575,120]
[356473583,1742506266145,-500.0,0.00046575,120]
[356473584,1742506266155,-500.0,0.00046575,120]
[356473585,1742506266165,-500.0,0.00046575,120]
[356473586,1742506266174,-500.0,0.00046575,120]
[356473587,1742506266183,-500.0,0.00046575,120]
[356473588,1742506266203,-506.44555303,0.00046575,120]
[356473589,1742506266221,-500.0,0.00046575,120]
[356473590,1742506266241,-501.13447539,0.00046575,120]
[356473591,1742506266263,-500.0,0.00046575,120]
[356473592,1742506266278,-500.0,0.00046575,120]
[356473593,1742506266296,-519.43227065,0.00046575,120]
[356473594,1742506266315,-500.0,0.00046575,120]
[356473595,1742506266333,-500.0,0.00046575,120]
[356473596,1742506266352,-500.0,0.00046575,120]
[356473597,1742506266370,-500.0,0.00046575,120]
[356473598,1742506266387,-500.0,0.00046575,120]
[356473599,1742506266404,-500.0,0.00046575,120]
[356473600,1742506266418,-500.0,0.00046575,120]
[356473601,1742506266437,-500.0,0.00046575,120]
[356473602,1742506266450,-500.0,0.00046575,120]
[356473603,1742506266468,-500.0,0.00046575,120]
[356473604,1742506266481,-500.0,0.00046575,120]
[356473605,1742506266496,-506.67461185,0.00046575,120]
[356473606,1742506266511,-1347.38,0.00046575,120]
[356473607,1742506266526,-500.0,0.00046575,120]
[356473608,1742506266540,-500.0,0.00046575,120]
[356473609,1742506266555,-501.90732739,0.00046575,120]
[356473610,1742506266570,-500.0,0.00046575,120]
[356473611,1742506266585,-500.0,0.00046575,120]
[356473612,1742506266599,-500.0,0.00046575,120]
[356473613,1742506266614,-500.0,0.00046575,120]
[356473614,1742506266628,-500.0,0.00046575,120]
[356473615,1742506266643,-500.67616203,0.00046575,120]
[356473616,1742506266657,-500.0,0.00046575,120]
[356473617,1742506266672,-1899.58,0.00046575,120]
[356473618,1742506266685,-500.0,0.00046575,120]
[356473619,1742506266700,-1574.01,0.00046575,120]
[356473620,1742506266715,-500.0,0.00046575,120]
[356473621,1742506266731,-500.0,0.00046575,120]
[356473622,1742506266746,-505.50020427,0.00046575,120]
[356473623,1742506266759,-500.0,0.00046575,120]
[356473624,1742506266773,-500.0,0.00046575,120]
[356473625,1742506266788,-3000.0,0.00046575,120]
[356473626,1742506266801,-500.0,0.00046575,120]
[356473627,1742506266816,-500.0,0.00046575,120]
[356473628,1742506266830,-500.0,0.00046575,120]
[356473629,1742506266844,-500.0,0.00046575,120]
[356473630,1742506266857,-500.0,0.00046575,120]
[356473631,1742506266873,-500.0,0.00046575,120]
[356473632,1742506266887,-500.0,0.00046575,120]
[356473633,1742506266901,-500.0,0.00046575,120]
[356473634,1742506266915,-500.0,0.00046575,120]
[356473635,1742506266930,-500.0,0.00046575,120]
[356473636,1742506266944,-500.0,0.00046575,120]
[356473637,1742506266963,-500.0,0.00046575,120]
[356473638,1742506266978,-500.0,0.00046575,120]
[356473639,1742506266992,-500.0,0.00046575,120]
[356473640,1742506267008,-500.0,0.00046575,120]
[356473641,1742506267023,-500.59761156,0.00046575,120]
[356473642,1742506267038,-500.0,0.00046575,120]
[356473643,1742506267052,-500.0,0.00046575,120]
[356473644,1742506267067,-500.0,0.00046575,120]
[356473645,1742506267081,-500.0,0.00046575,120]
[356473646,1742506267095,-500.0,0.00046575,120]
[356473647,1742506267109,-2599.75,0.00046575,120]
[356473648,1742506267228,-222.69,0.00046575,120]
[356473649,1742506267238,-500.0,0.00046575,120]
[356473650,1742506267247,-500.0,0.00046575,120]
[356473651,1742506267257,-500.0,0.00046575,120]
[356473652,1742506267265,-500.0,0.00046575,120]
[356473653,1742506267274,-501.52751934,0.00046575,120]
[356473654,1742506267283,-500.0,0.00046575,120]
[356473655,1742506267292,-500.0,0.00046575,120]
[356473656,1742506267301,-196.28062407,0.00046575,120]
[356473657,1742506267310,-500.0,0.00046575,120]
[356473658,1742506267319,-500.0,0.00046575,120]
[356473659,1742506267328,-500.0,0.00046575,120]
[356473660,1742506267337,-500.0,0.00046575,120]
[356473661,1742506267346,-500.0,0.00046575,120]
[356473662,1742506267355,-500.0,0.00046575,120]
[356473663,1742506267364,-500.0,0.00046575,120]
[356473664,1742506267373,-500.0,0.00046575,120]
[356473665,1742506267382,-500.0,0.00046575,120]
[356473666,1742506267391,-500.0,0.00046575,120]
[356473667,1742506267400,-500.0,0.00046575,120]
[356473668,1742506267409,-513.52645818,0.00046575,120]
[356473669,1742506267418,-500.0,0.00046575,120]
[356473670,1742506267427,-500.0,0.00046575,120]
[356473671,1742506267437,-500.0,0.00046575,120]
[356473672,1742506267446,-500.0,0.00046575,120]
[356473673,1742506267455,-500.0,0.00046575,120]
[356473674,1742506267464,-500.0,0.00046575,120]
[356473675,1742506267473,-508.19350676,0.00046575,120]
[356473676,1742506267482,-500.0,0.00046575,120]
[356473677,1742506267491,-532.95195364,0.00046575,120]
[356473678,1742506267501,-500.0,0.00046575,120]
[356473679,1742506267510,-500.0,0.00046575,120]
[356473680,1742506267519,-500.0,0.00046575,120]
[356473681,1742506267528,-500.0,0.00046575,120]
[356473682,1742506267537,-500.0,0.00046575,120]
[356473683,1742506267546,-500.0,0.00046575,120]
[356473684,1742506267555,-500.0,0.00046575,120]
[356473685,1742506267564,-500.0,0.00046575,120]
[356473686,1742506267574,-1311.47,0.00046575,120]
[356473687,1742506267583,-500.0,0.00046575,120]
[356473688,1742506267592,-514.64434653,0.00046575,120]
[356473689,1742506267602,-500.0,0.00046575,120]
[356473690,1742506267610,-500.0,0.00046575,120]
[356473691,1742506267619,-528.91584506,0.00046575,120]
[356473692,1742506267628,-1183.6,0.00046575,120]
[356473693,1742506267638,-500.0,0.00046575,120]
[356473694,1742506267647,-500.0,0.00046575,120]
[356473695,1742506267657,-1215.73,0.00046575,2]
[356473696,1742506267666,-500.0,0.00046575,120]
[356473697,1742506267675,-500.0,0.00046575,120]
[356473698,1742506267685,-500.0,0.00046575,120]
[356473699,1742506267694,-500.0,0.00046575,120]
[356473700,1742506267703,-500.0,0.00046575,120]
[356473701,1742506267713,-500.0,0.00046575,120]
[356473702,1742506267722,-500.0,0.00046575,120]
[356473703,1742506267731,-509.04403429,0.00046575,120]
[356473704,1742506267740,-500.0,0.00046575,120]
[356473705,1742506267750,-500.0,0.00046575,120]
[356473706,1742506267759,-547.76521825,0.00046575,120]
[356473707,1742506267768,-500.0,0.00046575,120]
[356473708,1742506267777,-500.0,0.00046575,120]
[356473709,1742506267786,-500.0,0.00046575,120]
[356473710,1742506267795,-500.0,0.00046575,120]
[356473711,1742506267804,-500.0,0.00046575,120]
[356473712,1742506267813,-500.0,0.00046575,120]
[356473713,1742506267822,-500.0,0.00046575,120]
[356473714,1742506267831,-500.0,0.00046575,120]
[356473715,1742506267840,-500.0,0.00046575,120]
[356473716,1742506267849,-500.0,0.00046575,120]
[356473717,1742506267858,-500.0,0.00046575,120]
[356473718,1742506267867,-500.0,0.00046575,120]
[356473719,1742506267876,-500.0,0.00046575,120]
[356473720,1742506267885,-500.0,0.00046575,120]
[356473721,1742506267894,-500.0,0.00046575,120]
[356473722,1742506267904,-500.0,0.00046575,120]
[356473723,1742506267913,-500.0,0.00046575,120]
[356473724,1742506267922,-500.0,0.00046575,120]
[356473725,1742506267930,-500.0,0.00046575,120]
[356473726,1742506267939,-500.0,0.00046575,120]
[356473727,1742506267954,-500.0,0.00046575,120]
[356473728,1742506267963,-500.0,0.00046575,120]
[356473729,1742506267972,-500.0,0.00046575,120]
[356473730,1742506267982,-500.0,0.00046575,120]
[356473731,1742506267992,-500.0,0.00046575,120]
[356473732,1742506268002,-236.13085293,0.00046575,120]
[356473733,1742506268017,-500.0,0.00046575,120]
[356473734,1742506268027,-500.0,0.00046575,120]
[356473735,1742506268037,-500.0,0.00046575,120]
[356473736,1742506268046,-500.0,0.00046575,120]
[356473737,1742506268055,-500.0,0.00046575,120]
[356473738,1742506268064,-500.0,0.00046575,120]
[356473739,1742506268073,-500.0,0.00046575,120]
[356473740,1742506268082,-500.0,0.00046575,120]
[356473741,1742506268092,-500.0,0.00046575,120]
[356473742,1742506268101,-500.0,0.00046575,120]
[356473743,1742506268111,-500.0,0.00046575,120]
[356473744,1742506268121,-642.45,0.00046575,7]
[356473745,1742506268131,-514.74662615,0.00046575,120]
[356473746,1742506268140,-500.0,0.00046575,120]
[356473747,1742506268150,-500.0,0.00046575,30]
[356473748,1742506268159,-500.0,0.00046575,120]
[356473749,1742506268169,-505.92783838,0.00046575,120]
[356473750,1742506268179,-500.0,0.00046575,120]
[356473751,1742506268189,-514.01735527,0.00046575,120]
[356473752,1742506268198,-500.0,0.00046575,120]
[356473753,1742506268208,-500.0,0.00046575,120]
[356473754,1742506268217,-500.0,0.00046575,120]
[356473755,1742506268226,-500.0,0.00046575,120]
[356473756,1742506268236,-500.0,0.00046575,120]